[Event "Titled Tuesday Blitz July 25 Early 2023"]
[White "Zacurdajev, Dmitry"]
[Black "NicolaiMaxime"]
[WhiteFideId "4196309"]
[WhiteElo "2418"]
[BlackElo "2607"]
[Result "0-1"]
[Round "3"]
[TimeControl "180+2"]
[Date "2023.07.25"]
[WhiteClock "0:00:05"]
[BlackClock "0:00:11"]
[Board "116"]

1. d4 {[%clk 0:03:00]}  Nf6 {[%clk 0:02:59]} 2. c4 {[%clk 0:03:00]}  e6 {[%clk 0:02:59]} 3. Nc3 {[%clk 0:03:01]}  Bb4 {[%clk 0:02:59]} 4. Qc2 {[%clk 0:03:01]}  d5 {[%clk 0:02:59]} 5. a3 {[%clk 0:03:02]}  Bxc3+ {[%clk 0:02:57]} 6. Qxc3 {[%clk 0:03:03]}  Ne4 {[%clk 0:02:58]} 7. Qc2 {[%clk 0:03:03]}  c5 {[%clk 0:02:58]} 8. dxc5 {[%clk 0:03:02]}  Nc6 {[%clk 0:02:58]} 9. Nf3 {[%clk 0:02:47]}  O-O {[%clk 0:02:54]} 10. e3 {[%clk 0:02:42]}  Qa5+ {[%clk 0:02:41]} 11. Bd2 {[%clk 0:02:21]}  Nxd2 {[%clk 0:02:40]} 12. Qxd2 {[%clk 0:02:18]}  Qxc5 {[%clk 0:02:35]} 13. b4 {[%clk 0:02:08]}  Qb6 {[%clk 0:02:29]} 14. c5 {[%clk 0:02:04]}  Qc7 {[%clk 0:02:27]} 15. Be2 {[%clk 0:01:49]}  a5 {[%clk 0:02:19]} 16. b5 {[%clk 0:01:43]}  Ne7 {[%clk 0:02:10]} 17. Rc1 {[%clk 0:01:39]}  Bd7 {[%clk 0:02:05]} 18. a4 {[%clk 0:01:38]}  Rfc8 {[%clk 0:02:02]} 19. O-O {[%clk 0:01:37]}  e5 {[%clk 0:01:39]} 20. Bd1 {[%clk 0:01:13]}  Bg4 {[%clk 0:01:21]} 21. h3 {[%clk 0:01:04]}  Bh5 {[%clk 0:01:16]} 22. Ng5 {[%clk 0:00:49]}  Bg6 {[%clk 0:01:10]} 23. Bb3 {[%clk 0:00:42]}  h6 {[%clk 0:01:09]} 24. Nf3 {[%clk 0:00:40]}  Be4 {[%clk 0:01:09]} 25. Qe2 {[%clk 0:00:32]}  Bxf3 {[%clk 0:00:46]} 26. Qxf3 {[%clk 0:00:32]}  e4 {[%clk 0:00:46]} 27. Qh5 {[%clk 0:00:25]}  g6 {[%clk 0:00:33]} 28. Qxh6 {[%clk 0:00:21]}  Qe5 {[%clk 0:00:33]} 29. Rfd1 {[%clk 0:00:17]}  Rc7 {[%clk 0:00:31]} 30. Qf4 {[%clk 0:00:15]}  Qxf4 {[%clk 0:00:30]} 31. exf4 {[%clk 0:00:16]}  Rd8 {[%clk 0:00:26]} 32. Rd4 {[%clk 0:00:15]}  Kg7 {[%clk 0:00:23]} 33. g4 {[%clk 0:00:08]}  Rdd7 {[%clk 0:00:17]} 34. Kg2 {[%clk 0:00:08]}  Rd8 {[%clk 0:00:15]} 35. Kg3 {[%clk 0:00:08]}  f5 {[%clk 0:00:15]} 36. f3 {[%clk 0:00:08]}  fxg4 {[%clk 0:00:13]} 37. hxg4 {[%clk 0:00:07]}  exf3 {[%clk 0:00:14]} 38. Kxf3 {[%clk 0:00:08]}  Rcd7 {[%clk 0:00:13]} 39. Rcd1 {[%clk 0:00:08]}  Rc7 {[%clk 0:00:13]} 40. Bxd5 {[%clk 0:00:05]}  Rxc5 {[%clk 0:00:13]} 41. Bxb7 {[%clk 0:00:05]}  Rc3+ {[%clk 0:00:13]} 42. Kf2 {[%clk 0:00:04]}  Rf8 {[%clk 0:00:12]} 43. Bf3 {[%clk 0:00:02]}  Rc2+ {[%clk 0:00:10]} 44. Kg3 {[%clk 0:00:02]}  Rc3 {[%clk 0:00:10]} 45. R1d3 {[%clk 0:00:03]}  Rc1 {[%clk 0:00:09]} 46. Rd7 {[%clk 0:00:03]}  Rf7 {[%clk 0:00:09]} 47. Bd5 {[%clk 0:00:02]}  Nf5+ {[%clk 0:00:05]} 48. gxf5 {[%clk 0:00:01]}  Rxd7 {[%clk 0:00:06]} 49. Be4 {[%clk 0:00:01]}  Rxd3+ {[%clk 0:00:05]} 50. Bxd3 {[%clk 0:00:02]}  Rc3 {[%clk 0:00:06]} 51. fxg6 {[%clk 0:00:02]}  Rxd3+ {[%clk 0:00:06]} 52. Kg4 {[%clk 0:00:02]}  Ra3 {[%clk 0:00:07]} 53. b6 {[%clk 0:00:02]}  Rxa4 {[%clk 0:00:07]} 54. Kg5 {[%clk 0:00:02]}  Rb4 {[%clk 0:00:07]} 55. f5 {[%clk 0:00:03]}  Rb5 {[%clk 0:00:07]} 56. b7 {[%clk 0:00:01]}  Rxb7 {[%clk 0:00:07]} 57. f6+ {[%clk 0:00:02]}  Kg8 {[%clk 0:00:07]} 58. Kh6 {[%clk 0:00:02]}  a4 {[%clk 0:00:08]} 59. f7+ {[%clk 0:00:01]}  Rxf7 {[%clk 0:00:07]} 60. gxf7+ {[%clk 0:00:02]}  Kxf7 {[%clk 0:00:08]} 61. Kg5 {[%clk 0:00:03]}  a3 {[%clk 0:00:09]} 62. Kf4 {[%clk 0:00:04]}  a2 {[%clk 0:00:10]} 63. Ke3 {[%clk 0:00:05]}  a1=Q {[%clk 0:00:11]} 0-1


[Site "https://www.chess.com"]

[Event "Titled Tuesday Blitz July 25 Early 2023"]
[White "Rietze, Clemens, Dr."]
[Black "Sipila, Vilka"]
[WhiteFideId "24620351"]
[BlackFideId "505455"]
[WhiteElo "2416"]
[BlackElo "2598"]
[Result "0-1"]
[Round "3"]
[TimeControl "180+2"]
[Date "2023.07.25"]
[WhiteClock "0:00:02"]
[BlackClock "0:00:29"]
[Board "118"]

1. d4 {[%clk 0:03:00]}  f5 {[%clk 0:02:59]} 2. c4 {[%clk 0:03:00]}  Nf6 {[%clk 0:03:00]} 3. Nc3 {[%clk 0:03:00]}  g6 {[%clk 0:03:00]} 4. h4 {[%clk 0:03:01]}  h6 {[%clk 0:02:58]} 5. Nh3 {[%clk 0:02:41]}  d6 {[%clk 0:02:56]} 6. Nf4 {[%clk 0:02:38]}  Rg8 {[%clk 0:02:56]} 7. h5 {[%clk 0:02:25]}  g5 {[%clk 0:02:56]} 8. Ng6 {[%clk 0:02:23]}  Bg7 {[%clk 0:02:50]} 9. e3 {[%clk 0:02:19]}  Nc6 {[%clk 0:02:50]} 10. d5 {[%clk 0:02:12]}  Ne5 {[%clk 0:02:48]} 11. Nxe5 {[%clk 0:02:05]}  dxe5 {[%clk 0:02:49]} 12. c5 {[%clk 0:02:03]}  e6 {[%clk 0:02:47]} 13. Bc4 {[%clk 0:01:58]}  exd5 {[%clk 0:02:44]} 14. Nxd5 {[%clk 0:01:59]}  Nxd5 {[%clk 0:02:34]} 15. Bxd5 {[%clk 0:02:00]}  Rf8 {[%clk 0:02:33]} 16. c6 {[%clk 0:01:55]}  Rb8 {[%clk 0:02:28]} 17. Qb3 {[%clk 0:01:37]}  Rf6 {[%clk 0:02:06]} 18. cxb7 {[%clk 0:01:18]}  Bd7 {[%clk 0:02:05]} 19. Bd2 {[%clk 0:01:13]}  c6 {[%clk 0:01:55]} 20. Bc4 {[%clk 0:01:08]}  Qb6 {[%clk 0:01:53]} 21. Qxb6 {[%clk 0:00:39]}  axb6 {[%clk 0:01:53]} 22. Ba6 {[%clk 0:00:40]}  c5 {[%clk 0:01:42]} 23. a4 {[%clk 0:00:34]}  Bc6 {[%clk 0:01:40]} 24. Bc3 {[%clk 0:00:31]}  Rd6 {[%clk 0:01:40]} 25. Ke2 {[%clk 0:00:17]}  Bxg2 {[%clk 0:01:38]} 26. Rhd1 {[%clk 0:00:16]}  Ke7 {[%clk 0:01:36]} 27. Rxd6 {[%clk 0:00:14]}  Kxd6 {[%clk 0:01:37]} 28. Rd1+ {[%clk 0:00:15]}  Ke7 {[%clk 0:01:32]} 29. f3 {[%clk 0:00:15]}  g4 {[%clk 0:01:30]} 30. fxg4 {[%clk 0:00:13]}  fxg4 {[%clk 0:01:31]} 31. Rd2 {[%clk 0:00:09]}  Bxb7 {[%clk 0:01:30]} 32. Bb5 {[%clk 0:00:09]}  Bf3+ {[%clk 0:01:28]} 33. Kf2 {[%clk 0:00:08]}  Rb7 {[%clk 0:01:29]} 34. Bc4 {[%clk 0:00:06]}  Bf6 {[%clk 0:01:28]} 35. Kg3 {[%clk 0:00:06]}  Rc7 {[%clk 0:01:10]} 36. Bd5 {[%clk 0:00:06]}  e4 {[%clk 0:01:05]} 37. Rf2 {[%clk 0:00:03]}  Bxc3 {[%clk 0:00:58]} 38. bxc3 {[%clk 0:00:04]}  c4 {[%clk 0:00:55]} 39. Rb2 {[%clk 0:00:03]}  Rd7 {[%clk 0:00:49]} 40. Rb5 {[%clk 0:00:02]}  Kd8 {[%clk 0:00:44]} 41. Bxc4 {[%clk 0:00:02]}  Rd1 {[%clk 0:00:44]} 42. Rd5+ {[%clk 0:00:03]}  Rxd5 {[%clk 0:00:44]} 43. Bxd5 {[%clk 0:00:04]}  Ke7 {[%clk 0:00:44]} 44. Bb7 {[%clk 0:00:03]}  Kd6 {[%clk 0:00:45]} 45. Bc8 {[%clk 0:00:03]}  Ke5 {[%clk 0:00:32]} 46. Bxg4 {[%clk 0:00:04]}  Bh1 {[%clk 0:00:30]} 47. Bc8 {[%clk 0:00:03]}  Bf3 {[%clk 0:00:30]} 48. Bb7 {[%clk 0:00:03]}  Bxh5 {[%clk 0:00:30]} 49. Kh4 {[%clk 0:00:02]}  Be8 {[%clk 0:00:29]} 0-1


[Site "https://www.chess.com"]

[Event "Titled Tuesday Blitz July 25 Early 2023"]
[White "Veiga, Jose Francisco R P Neves"]
[Black "Rios Escobar, Adan"]
[WhiteFideId "1930087"]
[BlackFideId "3403645"]
[WhiteElo "2594"]
[BlackElo "2416"]
[Result "1-0"]
[Round "3"]
[TimeControl "180+2"]
[Date "2023.07.25"]
[WhiteClock "0:00:04"]
[BlackClock "0:00:04"]
[Board "119"]

1. c4 {[%clk 0:02:42]}  Nf6 {[%clk 0:02:58]} 2. Nc3 {[%clk 0:02:41]}  g6 {[%clk 0:02:58]} 3. e4 {[%clk 0:02:40]}  d6 {[%clk 0:02:58]} 4. g3 {[%clk 0:02:40]}  Bg7 {[%clk 0:02:57]} 5. Bg2 {[%clk 0:02:40]}  c5 {[%clk 0:02:58]} 6. Nge2 {[%clk 0:02:41]}  Nc6 {[%clk 0:02:58]} 7. O-O {[%clk 0:02:41]}  h5 {[%clk 0:02:56]} 8. h3 {[%clk 0:02:40]}  h4 {[%clk 0:02:56]} 9. g4 {[%clk 0:02:40]}  Nxg4 {[%clk 0:02:40]} 10. hxg4 {[%clk 0:02:41]}  Bxg4 {[%clk 0:02:39]} 11. f3 {[%clk 0:02:40]}  h3 {[%clk 0:02:20]} 12. fxg4 {[%clk 0:02:37]}  hxg2 {[%clk 0:02:20]} 13. Kxg2 {[%clk 0:02:38]}  Qd7 {[%clk 0:02:17]} 14. Ng3 {[%clk 0:02:36]}  Rh4 {[%clk 0:02:14]} 15. d3 {[%clk 0:02:17]}  O-O-O {[%clk 0:02:10]} 16. Rh1 {[%clk 0:01:26]}  Rdh8 {[%clk 0:01:49]} 17. Bg5 {[%clk 0:01:23]}  Rxh1 {[%clk 0:01:44]} 18. Nxh1 {[%clk 0:01:24]}  Bxc3 {[%clk 0:01:43]} 19. bxc3 {[%clk 0:01:21]}  Ne5 {[%clk 0:01:44]} 20. Nf2 {[%clk 0:01:17]}  f5 {[%clk 0:01:20]} 21. Bf4 {[%clk 0:01:05]}  Nxg4 {[%clk 0:01:01]} 22. Nxg4 {[%clk 0:01:03]}  fxg4 {[%clk 0:01:02]} 23. Qe2 {[%clk 0:01:02]}  g3 {[%clk 0:01:01]} 24. Rh1 {[%clk 0:00:42]}  Rxh1 {[%clk 0:00:31]} 25. Kxh1 {[%clk 0:00:43]}  Qh3+ {[%clk 0:00:30]} 26. Kg1 {[%clk 0:00:43]}  e5 {[%clk 0:00:23]} 27. Bd2 {[%clk 0:00:28]}  Kc7 {[%clk 0:00:16]} 28. Be1 {[%clk 0:00:15]}  g2 {[%clk 0:00:10]} 29. Qxg2 {[%clk 0:00:16]}  Qxd3 {[%clk 0:00:11]} 30. Qxg6 {[%clk 0:00:11]}  Qxc4 {[%clk 0:00:10]} 31. Qg2 {[%clk 0:00:05]}  a5 {[%clk 0:00:09]} 32. Qc2 {[%clk 0:00:02]}  a4 {[%clk 0:00:09]} 33. Kf2 {[%clk 0:00:03]}  a3 {[%clk 0:00:08]} 34. Ke3 {[%clk 0:00:03]}  b5 {[%clk 0:00:07]} 35. Kd2 {[%clk 0:00:03]}  Qf1 {[%clk 0:00:05]} 36. Qd3 {[%clk 0:00:02]}  Qg2+ {[%clk 0:00:04]} 37. Qe2 {[%clk 0:00:03]}  Qg5+ {[%clk 0:00:04]} 38. Kc2 {[%clk 0:00:03]}  Qf4 {[%clk 0:00:03]} 39. Bd2 {[%clk 0:00:04]}  Qh4 {[%clk 0:00:03]} 40. Bc1 {[%clk 0:00:04]}  Qh3 {[%clk 0:00:02]} 41. Bxa3 {[%clk 0:00:04]}  Qe6 {[%clk 0:00:03]} 42. Kb1 {[%clk 0:00:03]}  Qg6 {[%clk 0:00:03]} 43. Bc1 {[%clk 0:00:04]}  Qg1 {[%clk 0:00:03]} 44. Kb2 {[%clk 0:00:04]}  Qg3 {[%clk 0:00:04]} 45. Qxb5 {[%clk 0:00:04]}  Qg2+ {[%clk 0:00:03]} 46. Kb3 {[%clk 0:00:04]}  Qxe4 {[%clk 0:00:04]} 47. Qc4 {[%clk 0:00:03]}  Qb1+ {[%clk 0:00:04]} 48. Bb2 {[%clk 0:00:04]}  Qd1+ {[%clk 0:00:04]} 49. Ka3 {[%clk 0:00:04]} 1-0


[Site "https://www.chess.com"]

[Event "Titled Tuesday Blitz July 25 Early 2023"]
[White "Alvarado Diaz, Alejandro"]
[Black "Al-Tarboush, Ward"]
[WhiteFideId "2276119"]
[BlackFideId "7601450"]
[WhiteElo "2411"]
[BlackElo "2576"]
[Result "0-1"]
[Round "3"]
[TimeControl "180+2"]
[Date "2023.07.25"]
[WhiteClock "0:00:01"]
[BlackClock "0:00:39"]
[Board "122"]

1. d4 {[%clk 0:03:00]}  d5 {[%clk 0:02:58]} 2. Bf4 {[%clk 0:03:00]}  Nf6 {[%clk 0:02:57]} 3. e3 {[%clk 0:03:00]}  c5 {[%clk 0:02:58]} 4. c3 {[%clk 0:03:00]}  Nc6 {[%clk 0:02:57]} 5. Nd2 {[%clk 0:03:00]}  Bf5 {[%clk 0:02:54]} 6. h3 {[%clk 0:02:48]}  e6 {[%clk 0:02:53]} 7. Ngf3 {[%clk 0:02:47]}  Bd6 {[%clk 0:02:51]} 8. Ne5 {[%clk 0:02:47]}  Bxe5 {[%clk 0:02:50]} 9. dxe5 {[%clk 0:02:45]}  Nd7 {[%clk 0:02:50]} 10. Nf3 {[%clk 0:02:42]}  Be4 {[%clk 0:02:50]} 11. Bb5 {[%clk 0:02:36]}  O-O {[%clk 0:02:47]} 12. Bxc6 {[%clk 0:02:27]}  bxc6 {[%clk 0:02:48]} 13. O-O {[%clk 0:02:26]}  Qb8 {[%clk 0:02:42]} 14. Nd2 {[%clk 0:02:14]}  Bg6 {[%clk 0:02:42]} 15. Qb3 {[%clk 0:02:04]}  c4 {[%clk 0:02:38]} 16. Qxb8 {[%clk 0:01:55]}  Raxb8 {[%clk 0:02:39]} 17. b3 {[%clk 0:01:55]}  cxb3 {[%clk 0:02:37]} 18. axb3 {[%clk 0:01:56]}  Rb7 {[%clk 0:02:31]} 19. Ra3 {[%clk 0:01:43]}  f6 {[%clk 0:02:12]} 20. exf6 {[%clk 0:01:40]}  gxf6 {[%clk 0:02:13]} 21. Rfa1 {[%clk 0:01:32]}  Ra8 {[%clk 0:02:13]} 22. Bd6 {[%clk 0:01:26]}  Kf7 {[%clk 0:02:11]} 23. Ra6 {[%clk 0:01:24]}  c5 {[%clk 0:01:54]} 24. R6a5 {[%clk 0:01:14]}  Bc2 {[%clk 0:01:42]} 25. Bxc5 {[%clk 0:01:08]}  Bxb3 {[%clk 0:01:40]} 26. Rxa7 {[%clk 0:00:36]}  Raxa7 {[%clk 0:01:36]} 27. Rxa7 {[%clk 0:00:28]}  Rxa7 {[%clk 0:01:32]} 28. Bxa7 {[%clk 0:00:28]}  Ba2 {[%clk 0:01:31]} 29. e4 {[%clk 0:00:23]}  e5 {[%clk 0:01:26]} 30. exd5 {[%clk 0:00:21]}  Bxd5 {[%clk 0:01:27]} 31. f3 {[%clk 0:00:21]}  Ke6 {[%clk 0:01:26]} 32. Kf2 {[%clk 0:00:21]}  f5 {[%clk 0:01:27]} 33. c4 {[%clk 0:00:17]}  Bc6 {[%clk 0:01:27]} 34. Ke2 {[%clk 0:00:09]}  f4 {[%clk 0:01:25]} 35. Bf2 {[%clk 0:00:07]}  Nf6 {[%clk 0:01:25]} 36. Kd3 {[%clk 0:00:07]}  Kf5 {[%clk 0:01:23]} 37. Bh4 {[%clk 0:00:04]}  Nd7 {[%clk 0:01:23]} 38. Kc3 {[%clk 0:00:03]}  Nc5 {[%clk 0:01:22]} 39. Bf2 {[%clk 0:00:02]}  Ne6 {[%clk 0:01:20]} 40. Kb4 {[%clk 0:00:02]}  h5 {[%clk 0:01:13]} 41. Ka5 {[%clk 0:00:03]}  Nd4 {[%clk 0:01:01]} 42. Kb6 {[%clk 0:00:03]}  Ba4 {[%clk 0:01:01]} 43. Kc5 {[%clk 0:00:03]}  Nc2 {[%clk 0:00:57]} 44. Kd6 {[%clk 0:00:03]}  Ne3 {[%clk 0:00:55]} 45. c5 {[%clk 0:00:02]}  Nd1 {[%clk 0:00:37]} 46. Be1 {[%clk 0:00:02]}  Nc3 {[%clk 0:00:38]} 47. c6 {[%clk 0:00:02]}  Nb5+ {[%clk 0:00:38]} 48. Kd7 {[%clk 0:00:01]}  Nd4 {[%clk 0:00:39]} 0-1


[Site "https://www.chess.com"]

[Event "Titled Tuesday Blitz July 25 Early 2023"]
[White "Vlassov, Nikolai"]
[Black "Tobak, Mikhail"]
[WhiteFideId "4103360"]
[BlackFideId "14165570"]
[WhiteElo "2576"]
[BlackElo "2400"]
[Result "0-1"]
[Round "3"]
[TimeControl "180+2"]
[Date "2023.07.25"]
[WhiteClock "0:00:09"]
[BlackClock "0:00:20"]
[Board "123"]

1. e4 {[%clk 0:03:00]}  Nf6 {[%clk 0:02:59]} 2. e5 {[%clk 0:03:00]}  Nd5 {[%clk 0:02:59]} 3. c4 {[%clk 0:03:00]}  Nb6 {[%clk 0:02:59]} 4. d4 {[%clk 0:03:01]}  d6 {[%clk 0:02:59]} 5. f4 {[%clk 0:03:01]}  dxe5 {[%clk 0:02:59]} 6. fxe5 {[%clk 0:03:02]}  Nc6 {[%clk 0:03:00]} 7. Be3 {[%clk 0:03:00]}  Bf5 {[%clk 0:03:00]} 8. Nc3 {[%clk 0:02:59]}  e6 {[%clk 0:03:01]} 9. Nf3 {[%clk 0:02:59]}  Qd7 {[%clk 0:03:01]} 10. Bd3 {[%clk 0:02:54]}  Bg4 {[%clk 0:02:41]} 11. O-O {[%clk 0:02:30]}  O-O-O {[%clk 0:02:40]} 12. d5 {[%clk 0:02:12]}  exd5 {[%clk 0:02:34]} 13. Bxb6 {[%clk 0:02:10]}  axb6 {[%clk 0:02:32]} 14. cxd5 {[%clk 0:02:10]}  Bxf3 {[%clk 0:02:11]} 15. dxc6 {[%clk 0:02:03]}  Bc5+ {[%clk 0:02:05]} 16. Kh1 {[%clk 0:02:00]}  Qxd3 {[%clk 0:01:45]} 17. Qxf3 {[%clk 0:01:54]}  Qxf3 {[%clk 0:01:42]} 18. Rxf3 {[%clk 0:01:54]}  bxc6 {[%clk 0:01:26]} 19. Rxf7 {[%clk 0:01:53]}  Rd7 {[%clk 0:01:26]} 20. e6 {[%clk 0:01:30]}  Rxf7 {[%clk 0:01:22]} 21. exf7 {[%clk 0:01:31]}  Rf8 {[%clk 0:01:22]} 22. Rf1 {[%clk 0:01:30]}  Kd7 {[%clk 0:01:20]} 23. Ne4 {[%clk 0:01:29]}  Be7 {[%clk 0:01:20]} 24. g4 {[%clk 0:01:07]}  Ke6 {[%clk 0:01:19]} 25. Kg2 {[%clk 0:01:07]}  Rxf7 {[%clk 0:01:17]} 26. Re1 {[%clk 0:01:08]}  Kd7 {[%clk 0:01:16]} 27. a4 {[%clk 0:00:59]}  Bd6 {[%clk 0:01:12]} 28. b3 {[%clk 0:00:56]}  Re7 {[%clk 0:01:03]} 29. h3 {[%clk 0:00:54]}  Re5 {[%clk 0:01:02]} 30. Kf3 {[%clk 0:00:54]}  Rd5 {[%clk 0:00:49]} 31. Re3 {[%clk 0:00:51]}  Bc5 {[%clk 0:00:45]} 32. Nxc5+ {[%clk 0:00:41]}  Rxc5 {[%clk 0:00:45]} 33. Kf4 {[%clk 0:00:40]}  g5+ {[%clk 0:00:41]} 34. Ke4 {[%clk 0:00:38]}  Kd6 {[%clk 0:00:40]} 35. Rf3 {[%clk 0:00:36]}  Re5+ {[%clk 0:00:38]} 36. Kd4 {[%clk 0:00:36]}  c5+ {[%clk 0:00:38]} 37. Kc4 {[%clk 0:00:36]}  Re4+ {[%clk 0:00:38]} 38. Kd3 {[%clk 0:00:34]}  Rb4 {[%clk 0:00:35]} 39. Kc3 {[%clk 0:00:32]}  Rf4 {[%clk 0:00:35]} 40. Rd3+ {[%clk 0:00:32]}  Kc6 {[%clk 0:00:33]} 41. Re3 {[%clk 0:00:32]}  h5 {[%clk 0:00:24]} 42. gxh5 {[%clk 0:00:26]}  Rh4 {[%clk 0:00:24]} 43. Rg3 {[%clk 0:00:20]}  Rxh5 {[%clk 0:00:24]} 44. Kb2 {[%clk 0:00:20]}  Kd5 {[%clk 0:00:23]} 45. Kc3 {[%clk 0:00:17]}  c6 {[%clk 0:00:22]} 46. Rd3+ {[%clk 0:00:14]}  Ke4 {[%clk 0:00:21]} 47. Kc4 {[%clk 0:00:11]}  Rh4 {[%clk 0:00:20]} 48. Rd6 {[%clk 0:00:09]}  Ke5+ {[%clk 0:00:20]} 0-1


[Site "https://www.chess.com"]

[Event "Titled Tuesday Blitz July 25 Early 2023"]
[White "Filgueira, Hernan"]
[Black "Haraguchi, Diego Sashaki"]
[WhiteFideId "101770"]
[BlackFideId "22729925"]
[WhiteElo "2573"]
[BlackElo "2398"]
[Result "1/2-1/2"]
[Round "3"]
[TimeControl "180+2"]
[Date "2023.07.25"]
[WhiteClock "0:00:31"]
[BlackClock "0:00:23"]
[Board "124"]

1. c4 {[%clk 0:02:59]}  e5 {[%clk 0:02:58]} 2. Nc3 {[%clk 0:02:59]}  Nf6 {[%clk 0:02:59]} 3. Nf3 {[%clk 0:02:59]}  Nc6 {[%clk 0:02:59]} 4. g3 {[%clk 0:02:59]}  Bb4 {[%clk 0:02:57]} 5. Bg2 {[%clk 0:02:58]}  O-O {[%clk 0:02:57]} 6. Nd5 {[%clk 0:02:57]}  Bc5 {[%clk 0:02:54]} 7. d3 {[%clk 0:02:56]}  h6 {[%clk 0:02:53]} 8. O-O {[%clk 0:02:53]}  d6 {[%clk 0:02:51]} 9. a3 {[%clk 0:02:47]}  a5 {[%clk 0:02:48]} 10. b3 {[%clk 0:02:47]}  Nxd5 {[%clk 0:02:47]} 11. cxd5 {[%clk 0:02:46]}  Nd4 {[%clk 0:02:48]} 12. Bb2 {[%clk 0:02:42]}  Nxf3+ {[%clk 0:02:47]} 13. exf3 {[%clk 0:02:36]}  Bf5 {[%clk 0:02:42]} 14. d4 {[%clk 0:02:35]}  exd4 {[%clk 0:02:37]} 15. Bxd4 {[%clk 0:02:35]}  Bc2 {[%clk 0:02:34]} 16. Qd2 {[%clk 0:02:26]}  Bxd4 {[%clk 0:02:34]} 17. Qxd4 {[%clk 0:02:25]}  Bxb3 {[%clk 0:02:34]} 18. a4 {[%clk 0:02:25]}  Qf6 {[%clk 0:02:28]} 19. Qd3 {[%clk 0:02:24]}  Qb2 {[%clk 0:02:12]} 20. Rfb1 {[%clk 0:02:01]}  Bc2 {[%clk 0:02:10]} 21. Rxb2 {[%clk 0:02:00]}  Bxd3 {[%clk 0:02:09]} 22. Rxb7 {[%clk 0:02:00]}  Rfd8 {[%clk 0:01:19]} 23. Rxc7 {[%clk 0:01:57]}  Rac8 {[%clk 0:01:16]} 24. Rac1 {[%clk 0:01:55]}  Rxc7 {[%clk 0:01:09]} 25. Rxc7 {[%clk 0:01:56]}  Rb8 {[%clk 0:01:08]} 26. h4 {[%clk 0:01:25]}  Rb1+ {[%clk 0:01:00]} 27. Kh2 {[%clk 0:01:25]}  Rb2 {[%clk 0:00:59]} 28. Ra7 {[%clk 0:01:19]}  Rxf2 {[%clk 0:00:47]} 29. Kg1 {[%clk 0:01:19]}  Ra2 {[%clk 0:00:44]} 30. Rxa5 {[%clk 0:01:19]}  Bc2 {[%clk 0:00:44]} 31. Ra8+ {[%clk 0:01:18]}  Kh7 {[%clk 0:00:43]} 32. a5 {[%clk 0:01:19]}  Bd3 {[%clk 0:00:42]} 33. g4 {[%clk 0:01:13]}  g5 {[%clk 0:00:41]} 34. hxg5 {[%clk 0:01:12]}  hxg5 {[%clk 0:00:42]} 35. Rd8 {[%clk 0:00:44]}  Rxa5 {[%clk 0:00:29]} 36. Rxd6 {[%clk 0:00:44]}  Bc4 {[%clk 0:00:28]} 37. Kh2 {[%clk 0:00:31]}  Rxd5 {[%clk 0:00:26]} 38. Rxd5 {[%clk 0:00:31]}  Bxd5 {[%clk 0:00:27]} 39. Kg3 {[%clk 0:00:32]}  Kg6 {[%clk 0:00:24]} 40. Bf1 {[%clk 0:00:31]}  f6 {[%clk 0:00:23]} 41. f4 {[%clk 0:00:31]} 1/2-1/2


[Site "https://www.chess.com"]

[Event "Titled Tuesday Blitz July 25 Early 2023"]
[White "Omariev, Maksim"]
[Black "Shishkov, Andrei"]
[WhiteFideId "4193423"]
[BlackFideId "4500563"]
[WhiteElo "2391"]
[BlackElo "2570"]
[Result "1-0"]
[Round "3"]
[TimeControl "180+2"]
[Date "2023.07.25"]
[WhiteClock "0:00:08"]
[BlackClock "0:00:07"]
[Board "125"]

1. e4 {[%clk 0:02:58]}  d5 {[%clk 0:02:58]} 2. exd5 {[%clk 0:02:58]}  Nf6 {[%clk 0:02:58]} 3. Nf3 {[%clk 0:02:56]}  Nxd5 {[%clk 0:02:58]} 4. d4 {[%clk 0:02:56]}  Bg4 {[%clk 0:02:58]} 5. Be2 {[%clk 0:02:56]}  e6 {[%clk 0:02:59]} 6. O-O {[%clk 0:02:56]}  Nc6 {[%clk 0:02:59]} 7. h3 {[%clk 0:02:56]}  Bh5 {[%clk 0:02:59]} 8. c4 {[%clk 0:02:51]}  Nb6 {[%clk 0:02:59]} 9. b3 {[%clk 0:02:46]}  Bxf3 {[%clk 0:02:54]} 10. Bxf3 {[%clk 0:02:47]}  Nxd4 {[%clk 0:02:55]} 11. Bxb7 {[%clk 0:02:43]}  Rb8 {[%clk 0:02:55]} 12. Be4 {[%clk 0:02:38]}  Be7 {[%clk 0:02:44]} 13. Be3 {[%clk 0:02:33]}  Bf6 {[%clk 0:02:41]} 14. Nc3 {[%clk 0:02:26]}  O-O {[%clk 0:02:33]} 15. Qd3 {[%clk 0:01:41]}  g6 {[%clk 0:02:23]} 16. Rad1 {[%clk 0:01:41]}  c5 {[%clk 0:02:21]} 17. Ne2 {[%clk 0:01:31]}  e5 {[%clk 0:01:57]} 18. f4 {[%clk 0:01:32]}  Nd7 {[%clk 0:01:40]} 19. Kh1 {[%clk 0:00:48]}  Bg7 {[%clk 0:01:33]} 20. f5 {[%clk 0:00:44]}  Nf6 {[%clk 0:01:26]} 21. Ng3 {[%clk 0:00:31]}  Qb6 {[%clk 0:01:04]} 22. Bg5 {[%clk 0:00:28]}  Rbd8 {[%clk 0:00:46]} 23. Qe3 {[%clk 0:00:20]}  Nxe4 {[%clk 0:00:21]} 24. Qxe4 {[%clk 0:00:21]}  f6 {[%clk 0:00:19]} 25. Be3 {[%clk 0:00:20]}  g5 {[%clk 0:00:19]} 26. h4 {[%clk 0:00:16]}  h6 {[%clk 0:00:18]} 27. Nh5 {[%clk 0:00:16]}  Qc7 {[%clk 0:00:16]} 28. Qg4 {[%clk 0:00:15]}  Rd6 {[%clk 0:00:15]} 29. hxg5 {[%clk 0:00:13]}  fxg5 {[%clk 0:00:15]} 30. Bxg5 {[%clk 0:00:14]}  hxg5 {[%clk 0:00:14]} 31. Qxg5 {[%clk 0:00:15]}  Qf7 {[%clk 0:00:14]} 32. f6 {[%clk 0:00:13]}  Rxf6 {[%clk 0:00:11]} 33. Nxf6+ {[%clk 0:00:10]}  Kh8 {[%clk 0:00:07]} 34. Qh4+ {[%clk 0:00:08]} 1-0


[Site "https://www.chess.com"]